fUST/lending_fUST_20251025
["ID","MTS","AMOUNT","RATE_DAILY","PERIOD"]
[392326814,1761341438153,-201.0,0.00022658,2]
[392326815,1761341438163,-103.75822518,0.00022658,2]
[392326816,1761341438175,-196.24177482,0.00022658,2]
[392326817,1761341438184,-300.0,0.00022658,2]
[392326818,1761341438193,-111.26670967,0.00022658,2]
[392326819,1761341438204,-1088.73329033,0.00022658,2]
[392326820,1761341438213,-441.08359296,0.00022659,2]
[392326821,1761341438224,-279.10748082,0.00022659,2]
[392326822,1761341438246,-5617.90062968,0.00022659,2]
[392326823,1761341438256,-983.0,0.0002266,2]
[392326824,1761341438267,-632.0,0.0002266,2]
[392326825,1761341438277,-2165.0,0.0002266,2]
[392326826,1761341438286,-411.0,0.0002266,2]
[392326827,1761341438295,-432.244,0.0002266,2]
[392326828,1761341438305,-358.77512913,0.00023193,2]
[392326829,1761341438314,-1115.84383645,0.00024549,2]
[392326830,1761341438324,-420.0,0.00024605,2]
[392326831,1761341438333,-500.0,0.00024648,2]
[392326832,1761341438343,-500.0,0.00024648,2]
[392326833,1761341438353,-500.0,0.00024648,2]
[392326834,1761341438363,-500.0,0.00024648,2]
[392326835,1761341438372,-500.0,0.00024648,2]
[392326836,1761341438382,-410.39717236,0.00024648,2]
[392326837,1761341438392,-500.0,0.00024648,2]
[392326838,1761341438402,-500.0,0.00024648,2]
[392326839,1761341438411,-454.87608076,0.00024648,2]
[392326840,1761341438421,-188.83233114,0.00024648,2]
[392326841,1761341438431,-500.0,0.00024648,2]
[392326842,1761341438441,-500.0,0.00024648,2]
[392326843,1761341438450,-500.0,0.00024648,2]
[392326844,1761341438460,-500.0,0.00024648,2]
[392326845,1761341438470,-500.0,0.00024648,2]
[392326846,1761341438479,-500.0,0.00024648,2]
[392326847,1761341438489,-500.0,0.00024648,2]
[392326848,1761341438498,-500.0,0.00024648,2]
[392326849,1761341438508,-500.0,0.00024648,2]
[392326850,1761341438517,-436.3534479,0.00024648,2]
[392326851,1761341438526,-500.0,0.00024648,2]
[392326852,1761341438535,-500.0,0.00024648,2]
[392326853,1761341438545,-500.0,0.00024648,2]
[392326854,1761341438555,-500.0,0.00024648,2]
[392326855,1761341438564,-232.91508155,0.00024648,2]
[392326856,1761341438573,-594.70291598,0.00024648,2]
[392326857,1761341438583,-300.0,0.00024648,2]
[392326858,1761341438592,-500.0,0.00024648,2]
[392326859,1761341438602,-500.0,0.00024648,2]
[392326860,1761341438611,-500.0,0.00024648,2]
[392326861,1761341438620,-337.82723454,0.00024648,2]
[392327147,1761341660158,10000.0,0.000201,10]
[392327148,1761341675431,10000.0,0.000201,10]
[392327149,1761341692704,8500.0,0.000187,2]
[392327152,1761342495790,4098.6012972,0.00018,2]
[392327166,1761342632444,-3456.89838994,0.00020182,2]
[392327291,1761342638355,-1496.2312901,0.00020182,2]
[392327292,1761342638367,-46.87031996,0.00020182,2]
[392327293,1761342638376,-255.12968004,0.00020387,2]
[392327294,1761342638412,-13.01103746,0.00020387,2]
[392327295,1761342638422,-300.0,0.00020799,2]
[392327296,1761342638432,-177.4108125,0.000208,2]
[392327297,1761342638442,-264.32418158,0.000208,2]
[392327298,1761342638451,-305.84489178,0.000208,2]
[392327299,1761342638461,-1408.44500814,0.000208,2]
[392327300,1761342638470,-403.33096709,0.00020824,2]
[392327301,1761342638479,-177.4108125,0.00021,2]
[392327302,1761342638489,-264.32418158,0.00021,2]
[392327303,1761342638498,-305.84489178,0.00021,2]
[392327304,1761342638507,-1408.44500814,0.00021,2]
[392327305,1761342638517,-177.4108125,0.000212,2]
[392327307,1761342638526,-264.32418158,0.000212,2]
[392327309,1761342638536,-305.84489178,0.000212,2]
[392327310,1761342638546,-1408.44500814,0.000212,2]
[392327311,1761342638555,-264.32418158,0.000215,2]
[392327312,1761342638564,-305.84489178,0.000215,2]
[392327313,1761342638574,-1408.44500814,0.000215,2]
[392327314,1761342638583,-1427.13203,0.00021586,2]
[392327315,1761342638592,-264.32418158,0.000217,2]
[392327316,1761342638602,-305.84489178,0.000217,2]
[392327317,1761342638611,-1408.44500814,0.000217,2]
[392327318,1761342638620,-1408.44500814,0.000219,2]
[392327319,1761342638629,-500.0,0.00022099,2]
[392327320,1761342638638,-500.0,0.00022099,2]
[392327321,1761342638648,-500.0,0.00022099,2]
[392327322,1761342638658,-465.54617777,0.000221,2]
[392327323,1761342638670,-942.89883037,0.000221,2]
[392327324,1761342638680,-1408.44500814,0.000223,2]
[392327325,1761342638690,-316.40604665,0.00022387,2]
[392327326,1761342638699,-1408.44500814,0.000225,2]
[392327327,1761342638709,-420.0,0.00022629,2]
[392327328,1761342638718,-503.84560978,0.000228,2]
[392327369,1761342640844,-904.59939836,0.000228,2]
[392327371,1761342640853,-205.83530187,0.00022937,2]
[392327373,1761342640862,-179.85611511,0.00023018,2]
[392327375,1761342640871,-340.65522202,0.00023036,2]
[392327377,1761342640880,-159.59482755,0.00023036,2]
[392327379,1761342640889,-500.0,0.00023036,2]
[392327381,1761342640899,-500.0,0.00023036,2]
[392327383,1761342640907,-500.0,0.00023036,2]
[392327385,1761342640916,-500.0,0.00023036,2]
[392327387,1761342640925,-500.0,0.00023036,2]
[392327389,1761342640935,-500.0,0.00023036,2]
[392327391,1761342640944,-500.0,0.00023036,2]
[392327393,1761342640952,-500.0,0.00023036,2]
[392327395,1761342640961,-387.9160525,0.00023036,2]
[392327397,1761342640971,-525.69704883,0.00023036,2]
[392327399,1761342640980,-205.26917393,0.00023036,2]
[392327401,1761342640989,-500.0,0.00023036,2]
[392327403,1761342640999,-500.0,0.00023036,2]
[392327405,1761342641008,-500.0,0.00023036,2]
[392327407,1761342641016,-500.0,0.00023036,2]
[392327408,1761342641026,-500.0,0.00023036,2]
[392327410,1761342641035,-500.0,0.00023036,2]
[392327412,1761342641045,-443.06475225,0.00023036,2]
[392327414,1761342641054,-500.0,0.00023036,2]
[392327416,1761342641063,-387.80672369,0.00023036,2]
[392327418,1761342641072,-500.0,0.00023036,2]
[392327420,1761342641082,-452.76177438,0.00023036,2]
[392327422,1761342641090,-500.0,0.00023036,2]
[392327424,1761342641099,-500.0,0.00023036,2]
[392327426,1761342641108,-500.0,0.00023036,2]
[392327428,1761342641116,-500.0,0.00023036,2]
[392327430,1761342641126,-500.0,0.00023036,2]
[392327432,1761342641135,-500.0,0.00023036,2]
[392327434,1761342641144,-500.0,0.00023036,2]
[392327436,1761342641153,-500.0,0.00023036,2]
[392327438,1761342641162,-500.0,0.00023036,2]
[392327440,1761342641171,-500.0,0.00023036,2]
[392327442,1761342641181,-500.0,0.00023036,2]
[392327444,1761342641190,-500.0,0.00023036,2]
[392327446,1761342641200,-500.0,0.00023036,2]
[392327448,1761342641209,-500.0,0.00023036,2]
[392327450,1761342641219,-519.24699707,0.00023036,2]
[392327452,1761342641228,-500.0,0.00023036,2]
[392327454,1761342641237,-500.0,0.00023036,2]
[392327456,1761342641246,-500.0,0.00023036,2]
[392327458,1761342641255,-500.0,0.00023036,2]
[392327460,1761342641264,-500.0,0.00023036,2]
[392327462,1761342641273,-500.0,0.00023036,2]
[392327464,1761342641283,-500.0,0.00023036,2]
[392327466,1761342641292,-500.0,0.00023036,2]
[392327468,1761342641304,-500.0,0.00023036,2]
[392327470,1761342641313,-500.0,0.00023036,2]
[392327472,1761342641322,-500.0,0.00023036,2]
[392327474,1761342641331,-500.0,0.00023036,2]
[392327476,1761342641340,-500.0,0.00023036,2]
[392327478,1761342641350,-500.0,0.00023036,2]
[392327480,1761342641359,-500.0,0.00023036,2]
[392327482,1761342641368,-500.0,0.00023036,2]
[392327484,1761342641377,-500.0,0.00023036,2]
[392327486,1761342641387,-500.0,0.00023036,2]
[392327488,1761342641396,-500.0,0.00023036,2]
[392327490,1761342641405,-500.0,0.00023036,2]
[392327492,1761342641414,-500.0,0.00023036,2]
[392327494,1761342641423,-500.0,0.00023036,2]
[392327496,1761342641433,-500.0,0.00023036,2]
[392327498,1761342641443,-500.0,0.00023036,2]
[392327500,1761342641452,-500.0,0.00023036,2]
[392327502,1761342641461,-500.0,0.00023037,2]
[392327504,1761342641469,-1374.94515193,0.00023038,2]
[392327506,1761342641479,-500.0,0.00023073,2]
[392327508,1761342641488,-150.11530037,0.00023073,2]
[392327510,1761342641497,-500.0,0.00023073,2]
[392327512,1761342641506,-183.62426972,0.00023073,2]
[392327514,1761342641515,-500.0,0.00023073,2]
[392327516,1761342641524,-500.0,0.00023073,2]
[392327518,1761342641534,-499.99872345,0.00023073,2]
[392327520,1761342641544,-500.29893777,0.00023073,2]
[392327522,1761342641553,-1000.0,0.00023125,2]
[392327524,1761342641563,-221.88543242,0.00023125,2]
[392327526,1761342641571,-1000.0,0.00023125,2]
[392327528,1761342641581,-1000.0,0.00023125,2]
[392327530,1761342641590,-1000.0,0.00023125,2]
[392327531,1761342641600,-1000.0,0.00023125,2]
[392327533,1761342641609,-187.58760619,0.00023125,2]
[392327535,1761342641618,-151.0,0.00023125,2]
[392327537,1761342641628,-151.0,0.00023125,2]
[392327540,1761342641637,-152.96043574,0.00023125,2]
[392327542,1761342641647,-151.0,0.00023125,2]
[392327544,1761342641656,-151.0,0.00023125,2]
[392327546,1761342641665,-151.0,0.00023125,2]
[392327548,1761342641673,-151.0,0.00023125,2]
[392327550,1761342641682,-151.0,0.00023125,2]
[392327552,1761342641691,-151.0,0.00023125,2]
[392327554,1761342641700,-151.0,0.00023125,2]
[392327555,1761342641709,-201.87452586,0.00023125,2]
[392327557,1761342641718,-185.80127872,0.00023139,2]
[392327559,1761342641727,-445.69691162,0.00023141,2]
[392327561,1761342641736,-500.0,0.00023143,2]
[392327563,1761342641746,-311.46642737,0.00023143,2]
[392327565,1761342641758,-151.0,0.00023144,7]
[392327567,1761342641768,-632.0,0.00023144,2]
[392327569,1761342641778,-983.0,0.00023144,2]
[392327571,1761342641787,-347.268,0.00023144,2]
[392327573,1761342641796,-432.244,0.00023144,2]
[392327575,1761342641806,-2165.0,0.00023144,2]
[392327576,1761342641815,-160.0,0.00023148,2]
[392327578,1761342641824,-151.0,0.00023278,2]
[392327580,1761342641836,-151.0,0.00023278,2]
[392327582,1761342641845,-151.0,0.00023278,7]
[392327584,1761342641854,-5465.58,0.00023278,10]
[392327586,1761342641864,-4554.65,0.00023278,10]
[392327588,1761342641873,-3795.54,0.00023278,10]
[392327590,1761342641882,-13891.3805746,0.00023288,30]
[392328079,1761343832624,-5000.0,0.00020977,9]
[392328081,1761343832634,-263.3916103,0.00021296,2]
[392328083,1761343832643,-666.0,0.00022076,2]
[392328085,1761343832652,-403.33096709,0.00022998,2]
[392328087,1761343832661,-1200.0,0.00023028,2]
[392328089,1761343832670,-1200.0,0.00023029,2]
[392328091,1761343832679,-270.0,0.00023029,2]
[392328093,1761343832688,-300.0,0.00023029,2]
[392328095,1761343832697,-300.0,0.00023029,2]
[392328097,1761343832706,-300.0,0.00023029,2]
[392328099,1761343832715,-598.65733917,0.0002303,2]
[392328101,1761343832724,-160.34052803,0.0002303,2]
[392328104,1761343832733,-500.0,0.0002303,2]
[392328107,1761343832742,-500.0,0.0002303,2]
[392328109,1761343832751,-500.0,0.0002303,2]
[392328112,1761343832761,-500.0,0.0002303,2]
[392328115,1761343832771,-500.0,0.0002303,2]
[392328119,1761343832780,-500.0,0.0002303,2]
[392328122,1761343832790,-500.0,0.0002303,2]
[392328125,1761343832801,-500.0,0.0002303,2]
[392328127,1761343832811,-500.0,0.0002303,2]
[392328129,1761343832821,-500.0,0.0002303,2]
[392328131,1761343832830,-500.0,0.0002303,2]
[392328133,1761343832840,-500.0,0.0002303,2]
[392328135,1761343832849,-500.0,0.0002303,2]
[392328137,1761343832858,-401.9246997,0.0002303,2]
[392328139,1761343832867,-500.0,0.0002303,2]
[392328141,1761343832876,-500.0,0.0002303,2]
[392328143,1761343832886,-500.0,0.0002303,2]
[392328145,1761343832896,-500.0,0.0002303,2]
[392328147,1761343832905,-500.0,0.0002303,2]
[392328149,1761343832914,-500.0,0.0002303,2]
[392328151,1761343832923,-500.0,0.0002303,2]
[392328153,1761343832932,-500.0,0.0002303,2]
[392328155,1761343832941,-500.0,0.0002303,2]
[392328157,1761343832950,-500.0,0.0002303,2]
[392328159,1761343832959,-500.0,0.0002303,2]
[392328161,1761343832968,-250.0,0.0002303,2]
[392328162,1761343832977,-10479.59408384,0.00023031,2]
[392328165,1761343832989,-1006.81783792,0.00023031,2]
[392328228,1761344037285,870.949737,0.00013699,2]
[392328281,1761345031959,-482.49190327,0.00019006,2]
[392328319,1761345037690,-3861.34534662,0.00019006,2]
[392328320,1761345037699,-200.0,0.00019198,2]
[392328321,1761345037708,-263.25517741,0.0001964,2]
[392328322,1761345037716,-250.0,0.00019897,2]
[392328323,1761345037726,-928.80725811,0.0002,2]
[392328324,1761345037734,-150.0,0.00020028,2]
[392328325,1761345037743,-870.949737,0.00020187,2]
[392328326,1761345037752,-162.2230547,0.0002099,2]
[392328327,1761345037761,-274.36808995,0.00021,2]
[392328328,1761345037770,-310.64110934,0.0002164,2]
[392328330,1761345037779,-150.0,0.00021849,2]
[392328332,1761345037787,-560.02351291,0.00022094,2]
[392328333,1761345037796,-500.0,0.00022094,2]
[392328334,1761345037805,-500.0,0.00022094,2]
[392328335,1761345037814,-500.0,0.00022094,2]
[392328336,1761345037823,-500.0,0.00022094,2]
[392328337,1761345037832,-500.0,0.00022094,2]
[392328338,1761345037841,-500.0,0.00022094,2]
[392328339,1761345037849,-500.0,0.00022094,2]
[392328340,1761345037858,-259.37895976,0.00022094,2]
[392328341,1761345037867,-267.24802974,0.00022094,2]
[392328342,1761345037880,-500.0,0.00022094,2]
[392328343,1761345037892,-500.0,0.00022094,2]
[392328344,1761345037904,-500.0,0.00022094,2]
[392328345,1761345037917,-500.0,0.00022094,2]
[392328346,1761345037930,-500.0,0.00022094,2]
[392328347,1761345037941,-500.0,0.00022094,2]
[392328348,1761345037951,-500.0,0.00022094,2]
[392328349,1761345037961,-500.0,0.00022094,2]
[392328350,1761345037972,-500.0,0.00022094,2]
[392328351,1761345037985,-500.0,0.00022094,2]
[392328352,1761345037997,-500.0,0.00022094,2]
[392328353,1761345038008,-500.0,0.00022094,2]
[392328354,1761345038019,-207.11343196,0.00022094,2]
[392328355,1761345038030,-500.0,0.00022094,2]
[392328356,1761345038041,-500.0,0.00022094,2]
[392328357,1761345038052,-500.0,0.00022094,2]
[392328358,1761345038063,-500.0,0.00022094,2]
[392328359,1761345038074,-500.0,0.00022094,2]
[392328360,1761345038086,-500.0,0.00022094,2]
[392328361,1761345038098,-500.0,0.00022094,2]
[392328362,1761345038110,-500.0,0.00022094,2]
[392328363,1761345038121,-500.0,0.00022094,2]
[392328364,1761345038131,-500.0,0.00022094,2]
[392328365,1761345038142,-500.0,0.00022094,2]
[392328366,1761345038154,-500.0,0.00022094,2]
[392328367,1761345038165,-500.0,0.00022094,2]
[392328368,1761345038176,-500.0,0.00022094,2]
[392328369,1761345038187,-500.0,0.00022094,2]
[392328370,1761345038200,-500.0,0.00022094,2]
[392328371,1761345038213,-500.0,0.00022094,2]
[392328372,1761345038224,-500.0,0.00022094,2]
[392328373,1761345038235,-500.0,0.00022094,2]
[392328374,1761345038248,-500.0,0.00022094,2]
[392328375,1761345038258,-500.0,0.00022094,2]
[392328376,1761345038268,-500.0,0.00022094,2]
[392328377,1761345038278,-500.0,0.00022094,2]
[392328378,1761345038289,-500.0,0.00022094,2]
[392328379,1761345038300,-500.0,0.00022094,2]
[392328380,1761345038311,-500.0,0.00022094,2]
[392328381,1761345038322,-500.0,0.00022094,2]
[392328382,1761345038333,-50000.0,0.00022095,2]
[392328383,1761345038345,-357.82208572,0.00022166,2]
[392328384,1761345038356,-158.52281952,0.00022166,2]
[392328385,1761345038367,-160.0,0.00022806,2]
[392328386,1761345038378,-403.33096709,0.0002282,2]
[392328387,1761345038390,-500.0,0.00022973,2]
[392328388,1761345038402,-500.0,0.00022973,2]
[392328389,1761345038414,-300.0,0.00022998,2]
[392328390,1761345038425,-238.45865541,0.00022998,2]
[392328391,1761345038437,-382.96780742,0.00022999,2]
[392328392,1761345038447,-277.0,0.00023,2]
[392328393,1761345038457,-202.91,0.00023,21]
[392328394,1761345038466,-151.0,0.00023009,2]
[392328395,1761345038476,-151.0,0.00023009,2]
[392328396,1761345038485,-250.0,0.00023009,2]
[392328397,1761345038495,-1000.0,0.00023009,2]
[392328398,1761345038505,-500.0,0.00023009,2]
[392328399,1761345038515,-154.4120634,0.00023009,2]
[392328808,1761346231992,-285.05573405,0.00019004,2]
[392328810,1761346232002,-251.77725168,0.00019853,2]
[392328812,1761346232014,-65.59409145,0.00021531,2]
[392328995,1761346238010,-337.73687564,0.00021531,2]
[392328997,1761346238020,-666.0,0.00021539,2]
[392328999,1761346238028,-178.5896253,0.00021577,2]
[392329001,1761346238038,-713.566015,0.00021743,2]
[392329003,1761346238047,-226.500328,0.00021745,2]
[392329005,1761346238056,-297.09715698,0.00021853,2]
[392329007,1761346238065,-163.77813028,0.00021919,2]
[392329009,1761346238074,-1820.66938392,0.00022159,2]
[392329011,1761346238085,-375.75,0.00022159,2]
[392329019,1761346240082,-374.18,0.00022159,2]
[392329827,1761346325205,7000.0,0.00015,30]
[392329828,1761346334190,1500.0,0.00015,2]
[392329830,1761347133286,783.854763,0.00013699,2]
[392330028,1761347446227,-1029.37774229,0.00019448,7]
[392330029,1761347446237,-247.22794044,0.00019818,2]
[392330030,1761347446246,-10.18688001,0.00020004,2]
[392330032,1761347560535,162.23093778,0.00015,2]
[392330033,1761348087653,10000.0,0.00030137,120]
[392330034,1761348108511,6227.46,0.00030137,120]
[392330117,1761348632353,-200.0,0.00019102,2]
[392330119,1761348632363,-666.0,0.00019102,2]
[392330121,1761348632371,-256.7895034,0.00019143,2]
[392330123,1761348632380,-479.413823,0.00019184,2]
[392330125,1761348632390,-423.97863795,0.000192,2]
[392330127,1761348632399,-1857.86404622,0.00019801,2]
[392330129,1761348632407,-150.0,0.00019975,2]
[392330130,1761348632416,-1200.0,0.00019999,2]
[392330131,1761348632425,-5000.0,0.0002,2]
[392330132,1761348632434,-300.0,0.00020004,2]
[392330133,1761348632443,-502.20805837,0.00020005,2]
[392330134,1761348632452,-903.97450506,0.00020005,2]
[392330135,1761348632466,-1605.45872099,0.00020005,2]
[392330136,1761348632475,-500.0,0.00020173,2]
[392330137,1761348632485,-500.0,0.00020173,2]
[392330138,1761348632494,-500.0,0.00020173,2]
[392330139,1761348632503,-500.0,0.00020173,2]
[392330140,1761348632512,-151.0,0.00020173,7]
[392330141,1761348632522,-637.10174,0.00020173,7]
[392330142,1761348632531,-637.10174,0.00020173,7]
[392330143,1761348632540,-637.10174,0.00020173,7]
[392330144,1761348632549,-637.10174,0.00020173,7]
[392330145,1761348632558,-152.976021,0.00020173,7]
[392330146,1761348632567,-500.0,0.00020183,2]
[392330147,1761348632576,-500.0,0.00020183,2]
[392330149,1761348632585,-418.58311441,0.00020183,2]
[392330151,1761348632594,-500.0,0.00020183,2]
[392330152,1761348632603,-500.0,0.00020183,2]
[392330153,1761348632611,-500.0,0.00020183,2]
[392330154,1761348632620,-500.0,0.00020183,2]
[392330155,1761348632629,-420.7113432,0.00020183,2]
[392330156,1761348632638,-500.0,0.00020183,2]
[392330157,1761348632647,-500.0,0.00020183,2]
[392330158,1761348632656,-500.0,0.00020183,2]
[392330159,1761348632665,-151.0,0.00020183,7]
[392330160,1761348632674,-637.10174,0.00020183,7]
[392330161,1761348632683,-637.10174,0.00020183,7]
[392330162,1761348632691,-637.10174,0.00020183,7]
[392330163,1761348632701,-637.10174,0.00020183,7]
[392330164,1761348632710,-317.863378,0.00020184,7]
[392330166,1761348632719,-317.863378,0.00020184,7]
[392330168,1761348632728,-317.863378,0.00020184,7]
[392330170,1761348632739,-317.863378,0.00020184,7]
[392330172,1761348632748,-24.07727666,0.00020184,7]
[392330253,1761348640534,-151.0,0.00020173,7]
[392330255,1761348640553,-126.92272334,0.00020184,7]
[392330257,1761348640562,-151.0,0.00020184,7]
[392330259,1761348640572,-151.0,0.00020184,7]
[392330261,1761348640581,-13383.13602114,0.00020185,2]
[392330263,1761348640590,-500.0,0.00020185,2]
[392330265,1761348640599,-151.0,0.00020185,7]
[392330267,1761348640609,-151.0,0.00020185,7]
[392330269,1761348640618,-277.738654,0.00020185,7]
[392330271,1761348640627,-500.0,0.00020185,2]
[392330273,1761348640636,-151.0,0.00020185,7]
[392330275,1761348640646,-151.0,0.00020185,7]
[392330277,1761348640655,-151.0,0.00020185,7]
[392330279,1761348640665,-151.0,0.00020185,7]
[392330281,1761348640675,-151.0,0.00020185,7]
[392330282,1761348640684,-151.0,0.00020185,7]
[392330284,1761348640693,-151.0,0.00020185,7]
[392330286,1761348640703,-151.0,0.00020185,7]
[392330289,1761348640712,-151.0,0.00020185,2]
[392330290,1761348640721,-151.0,0.00020185,2]
[392330293,1761348640730,-151.0,0.00020185,2]
[392330295,1761348640740,-151.0,0.00020185,2]
[392330296,1761348640749,-151.220682,0.00020185,7]
[392330298,1761348640758,-151.0,0.00020185,7]
[392330300,1761348640767,-151.0,0.00020185,7]
[392330302,1761348640776,-151.301146,0.00020185,7]
[392330304,1761348640785,-151.0,0.00020185,7]
[392330306,1761348640794,-151.0,0.00020185,7]
[392330308,1761348640803,-151.0,0.00020185,7]
[392330310,1761348640811,-151.0,0.00020185,7]
[392330312,1761348640820,-151.0,0.00020185,7]
[392330314,1761348640829,-151.0,0.00020185,7]
[392330315,1761348640838,-317.863378,0.00020185,7]
[392330318,1761348640848,-317.863378,0.00020185,7]
[392330319,1761348640858,-317.863378,0.00020185,7]
[392330321,1761348640867,-317.863378,0.00020185,7]
[392330323,1761348640876,-317.863378,0.00020185,7]
[392330325,1761348640885,-317.863378,0.00020185,7]
[392330327,1761348640894,-317.863378,0.00020185,7]
[392330329,1761348640903,-317.863378,0.00020185,7]
[392330331,1761348640912,-151.0,0.00020185,7]
[392330333,1761348640921,-151.0,0.00020185,7]
[392330335,1761348640931,-151.0,0.00020185,7]
[392330337,1761348640940,-151.0,0.00020185,7]
[392330339,1761348640950,-151.0,0.00020185,7]
[392330341,1761348640960,-637.10174,0.00020185,7]
[392330343,1761348640969,-637.10174,0.00020185,7]
[392330345,1761348640978,-637.10174,0.00020185,7]
[392330347,1761348640988,-637.10174,0.00020185,7]
[392330349,1761348640998,-637.10174,0.00020185,7]
[392330351,1761348641007,-637.10174,0.00020185,7]
[392330353,1761348641016,-637.10174,0.00020185,7]
[392330354,1761348641026,-607.57414083,0.00020185,7]
[392330777,1761349277145,361.47171142,0.00018054,2]
[392330781,1761349706345,764.0027,0.00013699,2]
[392330784,1761349717102,5000.0,0.000187,2]
[392330785,1761349739461,3712.3046508,0.000187,2]
[392330786,1761349739483,1287.6953492,0.000187,2]
[392330787,1761349754604,656.19275011,0.000187,2]
[392330788,1761349762473,5000.0,0.000187,2]
[392330789,1761349777701,3056.12190069,0.000187,2]
[392330790,1761349777724,1287.6853492,0.000187,2]
[392330791,1761349785412,5000.0,0.000187,2]
[392330792,1761349800672,3712.3246508,0.000187,2]
[392330793,1761349800694,1287.6753492,0.000187,2]
[392330794,1761349808463,5000.0,0.000187,2]
[392330842,1761349832627,-1200.0,0.00019005,2]
[392330844,1761349832637,-300.0,0.00019006,2]
[392330846,1761349832645,-300.0,0.00019006,2]
[392330848,1761349832655,-300.0,0.00019006,2]
[392330850,1761349832664,-266.76784692,0.00019006,2]
[392330852,1761349832673,-14843.6849326,0.00019007,2]
[392330854,1761349832683,-300.0,0.00019386,2]
[392330856,1761349832692,-300.0,0.00019386,2]
[392330858,1761349832702,-300.0,0.00019386,2]
[392330860,1761349832711,-164.13438117,0.00019895,2]
[392330862,1761349832720,-1778.69461023,0.00019928,2]
[392330866,1761349832730,-500.0,0.00019972,2]
[392330868,1761349832739,-500.0,0.00019972,2]
[392330870,1761349832749,-500.0,0.00019972,2]
[392330873,1761349832758,-500.0,0.00019972,2]
[392330875,1761349832767,-500.0,0.00019972,2]
[392330877,1761349832776,-500.0,0.00019972,2]
[392330879,1761349832785,-565.1609837,0.00019972,2]
[392330881,1761349832794,-500.0,0.00019972,2]
[392330884,1761349832805,-500.0,0.00019972,2]
[392330886,1761349832814,-500.0,0.00019972,2]
[392330888,1761349832823,-500.0,0.00019972,2]
[392330890,1761349832833,-500.0,0.00019972,2]
[392330892,1761349832842,-500.0,0.00019972,2]
[392330893,1761349832852,-500.0,0.00019972,2]
[392330895,1761349832862,-37994.32773829,0.00019973,2]
[392330897,1761349832871,-529.66,0.0001999,3]
[392330899,1761349832881,-166.92105879,0.00019994,2]
[392330902,1761349832891,-661.18425653,0.00019995,2]
[392330903,1761349832900,-151.489626,0.00019995,7]
[392330905,1761349832910,-151.0,0.00019996,7]
[392330907,1761349832919,-151.0,0.00019996,7]
[392330909,1761349832928,-151.0,0.00019996,7]
[392330911,1761349832937,-151.0,0.00019996,7]
[392330912,1761349832946,-151.0,0.00019996,7]
[392330914,1761349832955,-151.0,0.00019996,2]
[392330916,1761349832965,-151.0,0.00019996,2]
[392330918,1761349832973,-151.0,0.00019996,2]
[392330919,1761349832983,-204.758946,0.00019996,2]
[392330921,1761349832993,-151.0,0.00019996,7]
[392330923,1761349833002,-151.0,0.00019996,7]
[392330924,1761349833011,-151.0,0.00019996,7]
[392330926,1761349833020,-151.0,0.00019996,7]
[392330928,1761349833029,-151.0,0.00019996,7]
[392330929,1761349833038,-151.0,0.00019996,7]